{"text_format":"1","workbook":"xlsx","n_sheets":2,"sheets":["Formularz","Harmonogram"],"not_rendered":{"charts":0,"images":3,"macros":1,"external_links":0,"defined_names":2,"comments":0,"pivot_tables":0},"unopened":[],"bounds":{"document_bytes":16777216,"sheet_cells":100000,"rows_first":2000,"rows_last":500,"rows_between":2000,"halvings":0,"cell_chars":16384,"cell_head_chars":4096},"cells_cut":0,"cells_raw":0,"read":"whole","date_system":"1900"}

{"sheet":"Formularz","index":0,"n_rows":193,"n_cols":13,"rows_kept":193,"cut":false,"hidden":false,"merged":[[115,2,115,3],[115,4,115,6],[116,1,116,3],[116,4,116,6],[128,1,128,3],[128,4,128,6],[129,1,129,3],[129,4,129,6],[90,2,90,3],[91,2,91,3],[90,4,90,7],[96,1,96,7],[91,4,91,7],[101,1,101,3],[101,4,101,6],[117,4,117,6],[127,1,127,3],[127,4,127,6],[99,2,99,3],[99,4,99,6],[100,4,100,6],[100,1,100,3],[103,1,103,3],[103,4,103,6],[113,1,113,3],[114,2,114,7],[40,2,40,7],[41,3,43,3],[41,6,43,7],[7,1,16,7],[102,1,102,3],[102,4,102,6],[113,4,113,6],[69,2,69,7],[88,2,88,7],[93,2,93,3],[57,2,57,7],[85,2,85,7],[92,2,92,3],[68,4,68,7],[58,4,58,7],[59,4,59,7],[60,4,60,7],[61,4,61,7],[62,4,62,7],[63,4,63,7],[67,2,67,3],[68,2,68,3],[58,2,58,3],[59,2,59,3],[83,4,83,6],[84,4,84,6],[98,2,98,7],[87,2,87,3],[60,2,60,3],[61,2,61,3],[62,2,62,3],[63,2,63,3],[64,2,64,3],[65,2,65,3],[66,2,66,3],[64,4,64,7],[65,4,65,7],[66,4,66,7],[67,4,67,7],[87,4,87,7],[86,2,86,3],[86,4,86,7],[89,2,89,3],[54,4,54,7],[55,4,55,7],[56,2,56,3],[56,4,56,7],[44,2,44,7],[45,2,45,3],[46,2,46,3],[47,2,47,3],[48,2,48,3],[49,2,49,3],[50,2,50,3],[51,2,51,3],[52,2,52,3],[53,2,53,3],[54,2,54,3],[55,2,55,3],[45,4,45,7],[46,4,46,7],[47,4,47,7],[48,4,48,7],[49,4,49,7],[50,4,50,7],[51,4,51,7],[52,4,52,7],[73,1,74,1],[72,4,72,6],[74,4,74,6],[80,4,80,6],[82,4,82,6],[70,2,70,3],[71,2,72,3],[73,2,74,3],[75,1,76,1],[75,2,76,3],[75,4,75,6],[76,4,76,6],[70,4,70,7],[79,2,80,3],[81,2,82,3],[71,4,71,6],[73,4,73,6],[77,1,78,1],[77,2,78,3],[77,4,77,6],[78,4,78,6],[5,1,5,7],[21,1,21,7],[27,1,27,7],[39,1,39,7],[18,1,18,7],[22,2,22,7],[26,2,26,7],[28,2,28,7],[38,2,38,7],[23,3,25,3],[23,6,25,7],[20,2,20,7],[35,3,37,7],[32,3,34,7],[29,3,31,7],[53,4,53,7],[71,1,72,1],[92,4,92,7],[93,4,93,7],[182,1,182,7],[131,2,131,3],[131,4,131,7],[132,2,132,7],[147,1,147,3],[147,4,147,6],[148,1,148,3],[148,4,148,6],[153,1,153,3],[153,4,153,6],[83,2,84,3],[79,1,80,1],[81,1,82,1],[83,1,84,1],[89,4,89,7],[173,1,173,7],[175,1,176,7],[79,4,79,6],[81,4,81,6],[117,1,117,3],[186,1,186,7],[190,1,190,7],[178,1,178,7],[143,1,143,3],[144,1,144,3],[145,1,145,3],[157,1,157,3],[157,4,157,6],[158,1,158,3],[158,4,158,6],[159,1,159,3],[159,4,159,6],[160,1,160,3],[160,4,160,6],[161,1,161,3],[161,4,161,6],[150,4,150,6],[151,2,151,7],[152,4,152,6],[152,2,152,3],[146,1,146,3],[150,1,150,3],[149,4,149,6],[149,1,149,3],[118,1,118,3],[118,4,118,6],[119,1,119,3],[119,4,119,6],[154,1,154,3],[133,2,133,3],[134,2,134,3],[142,1,142,3],[142,4,142,6],[130,2,130,7],[135,2,135,3],[133,4,133,7],[141,2,141,3],[135,4,135,7],[140,2,140,7],[141,4,141,6],[138,1,138,7],[146,4,146,6],[154,4,154,6],[143,4,143,6],[144,4,144,6],[145,4,145,6],[170,1,170,3],[170,4,170,6],[171,1,171,3],[171,4,171,6],[0,11,5,21],[156,4,156,6],[156,1,156,3],[155,4,155,6],[155,1,155,3],[125,1,125,3],[125,4,125,6],[126,1,126,3],[126,4,126,6],[120,1,120,3],[120,4,120,6],[121,1,121,3],[121,4,121,6],[122,1,122,3],[122,4,122,6],[123,1,123,3],[123,4,123,6],[124,1,124,3],[124,4,124,6],[134,4,134,7],[163,1,163,7],[165,2,165,7],[166,2,166,3],[166,4,166,6],[167,1,167,3],[167,4,167,6],[168,1,168,3],[168,4,168,6],[169,1,169,3],[169,4,169,6]]}
[null,null,null,null,null,null,null,null,null,null,null,"Instrukcja wypełniania tabeli: \n1. Wszystkie pola Formularza, z wyjątkiem oznaczonych kolorem niebieskim, powinny być wypełnione przez Oferenta\n2. Plik należy zapisać w formacie .xlsm\n3. Po wypełnieniu wszystkie komórki z zakresu L8:L14 powinny wskazywać wartość PRAWDA"]
[]
[]
[]
[]
[null,"Załącznik nr 1: Formularz identyfikacyjny Oferty"]
[]
[null,"1. Formularz identyfikacyjny Oferty powinien zostać przygotowany jako osobny dokument oraz plik stanowiący integralną część Oferty. \n2. Forma przekazania informacji w ramach załącznika ograniczona jest do tekstu (bez dodatkowych obrazów, tabel, grafów itp.).\n3. Nie określa się limitu, co do maksymalnej objętości, jaką posiadać może Formularz.\n4. Oferent niebędący osobą fizyczną powinien wykazać prawo do bycia reprezentowanym przez określone osoby poprzez dołączenie do niniejszego Załącznika odpisu z właściwego rejestru, wyciągu, pełnomocnictw lub innych korporacyjnych dokumentów potwierdzających umocowanie do reprezentacji Oferenta.\n5. W przypadku gdy Oferentem jest grupa osób fizycznych formularz powinien uwzględniać oraz zostać podpisany przez wszystkie osoby fizyczne (wiersze odnoszące się do poszczególnych osób fizycznych powinny być w takim przypadku multiplikowane).\n6. Podpisy na końcu Formularza będą wymagane w momencie składania oryginałów dokumentów.\n7. W przypadku gdy w ramach Oferty został wskazany więcej niż 1 (słownie: jeden) Inwestor Prywatny oraz/lub osoba wchodząca w skład Zespołu Formularz powinien uwzględniać odpowiednio wszystkich Inwestorów Prywatnych oraz/lub wszystkie osoby wchodzące w skład Zespołu.\n8. Odpowiednie rubryki niniejszego Formularza można multiplikować (kopiować) jeżeli zamieszczone w niniejszym Formularzu pola nie wystarczają do wykazania wymaganych informacji.\n9. Pojęcia niezdefiniowane w niniejszym dokumencie mają znaczenie nadane im w Zasadach.",null,null,null,null,null,null,null,null,null,{"$f":"IF(SUM(E73,E75,E77,E79,E81)=E71,\"PRAWDA\",\"FAŁSZ\")","v":"PRAWDA"},"Poszczególne wkłady = Deklarowanej Kapitalizacji"]
[null,null,null,null,null,null,null,null,null,null,null,{"$f":"IF(SUM(H101:H114)=E75,\"PRAWDA\",\"FAŁSZ\")","v":"PRAWDA"},"Suma wkładów poszczególnych członków KP = wkład KP"]
[null,null,null,null,null,null,null,null,null,null,null,{"$f":"IF(SUM(H117:H130)=E77,\"PRAWDA\",\"FAŁSZ\")","v":"PRAWDA"},"Suma wkładów poszczególnych pozostałych członków Zespołu = wkład pozostałych członków Zespołu"]
[null,null,null,null,null,null,null,null,null,null,null,{"$f":"IF(SUM(E143:G151,E154:G162)=E73,\"PRAWDA\",\"FAŁSZ\")","v":"PRAWDA"},"Suma wkładów poszczególnych Inwestorów Prywatnych = wkład Inwestorów Prywatnych"]
[null,null,null,null,null,null,null,null,null,null,null,{"$f":"IF(SUM(E168:G172)=E79,\"PRAWDA\",\"FAŁSZ\")","v":"PRAWDA"},"Suma wkładów poszczególnych pozostałych Inwestorów = wkład pozostałych Inwestorów"]
[null,null,null,null,null,null,null,null,null,null,null,{"$f":"IF(COUNTIF(E101:G114,\">=32\")>=2,\"PRAWDA\",\"FAŁSZ\")","v":"FAŁSZ"},"Przynajmniej 2 członków KP zadeklarowało zaangażowanie na poziomie min. 32h/tyg. "]
[null,null,null,null,null,null,null,null,null,null,null,{"$f":"IF(AND(SUM(H77,H75)>=0.01,SUM(H77,H75)<=0.2),\"PRAWDA\",\"FAŁSZ\")","v":"FAŁSZ"},"Wkład prywatny = 1-20% Deklarowanej Kapitalizacji"]
[]
[]
[]
[]
[null,"Podstawowe dane dotyczące Oferenta"]
[]
[null,"1.","Imię i nazwisko/Nazwa Oferenta"]
[]
[null,"2.","Typ Oferenta",null,null,null,null,null,null,{"$f":"IFERROR(IF(SUM(COUNTBLANK(C25),COUNTBLANK(F25))=1,\"ok\",\"zaznacz jedno pole\"),\"-\")","v":"zaznacz jedno pole"}]
[null,null,null,"Podmiot Zarządzający",null,null,"Fundusz VC"]
[]
[]
[null,"3.","Forma prawna Oferenta"]
[]
[null,"4.","Typ podmiotu Zarządzającego Funduszem VC",null,null,null,null,null,null,{"$f":"IFERROR(IF(SUM(COUNTBLANK(C31),COUNTBLANK(C34), COUNTBLANK(C37))=2,\"ok\",\"zaznacz jedno pole\"),\"-\")","v":"zaznacz jedno pole"}]
[null,null,null,"osoby fizyczne tworzące wewnętrzny organ zarządzający Funduszu VC, np. zarząd spółki kapitałowej, która po jej utworzeniu oraz wyborze w ramach Naboru będzie Funduszem VC"]
[]
[]
[null,null,null,"osoby prawne tworzące zewnętrzny organ zarządzający Funduszu VC, np. komplementariusz spółki komandytowo-akcyjnej, który po jej utworzeniu oraz wyborze w ramach Naboru będzie Funduszem VC "]
[]
[]
[null,null,null,"niezależny zewnętrzny przedsiębiorca, uprawniony według przepisów państwa, w którym prowadzi działalność, do zarządzania częścią lub całością działalności inwestycyjnej Funduszu VC (np. podmiot mający zarządzać częścią lub całością portfela inwestycyjnego funduszu inwestycyjnego, który po jego utworzeniu oraz wyborze w ramach Naboru będzie Funduszem VC)"]
[]
[]
[null,"5.","Określenie funkcji Podmiotu Zarządzającego w strukturze Funduszu VC, który ma zostać utworzony (np. zarząd spółki kapitałowej lub komplementariusz w spółce komandytowo-akcyjnej) oraz określenie planowanej formy prawnej Funduszu VC"]
[]
[null,"6.","Typ Funduszu VC",null,null,null,null,null,null,{"$f":"IFERROR(IF(SUM(COUNTBLANK(C43),COUNTBLANK(F43))=1,\"ok\",\"zaznacz jedno pole\"),\"-\")","v":"zaznacz jedno pole"}]
[null,null,null,"generalistyczny",null,null,"branżowy/specjalistyczny"]
[]
[]
[null,"7.","Szczegółowe dane kontaktowe Oferenta niebędącego osobą fizyczną"]
[null,null,"Nazwa Podmiotu Zarządzającego"]
[null,null,"Adres zamieszkania:"]
[null,null,"-Kraj"]
[null,null,"-Województwo"]
[null,null,"-Powiat"]
[null,null,"-Gmina"]
[null,null,"-Miejscowość"]
[null,null,"-Ulica"]
[null,null,"-Nr budynku"]
[null,null,"-Nr lokalu"]
[null,null,"-Kod pocztowy"]
[null,null,"Nazwa rejestru/ewidencji oraz numer wpisu do rejestru/ewidencji"]
[null,"8.","Szczegółowe dane kontaktowe Oferenta będącego osobą fizyczną"]
[null,null,"Imię i nazwisko"]
[null,null,"Adres zamieszkania:"]
[null,null,"-Kraj"]
[null,null,"-Województwo"]
[null,null,"-Powiat"]
[null,null,"-Gmina"]
[null,null,"-Miejscowość"]
[null,null,"-Ulica"]
[null,null,"-Nr budynku"]
[null,null,"-Nr lokalu"]
[null,null,"-Kod pocztowy"]
[null,"9.","Deklarowana kapitalizacja Funduszu VC"]
[null,"9.1.","Deklarowana kapitalizacja Funduszu VC (w tys. zł), w tym:",null,{"$f":"IFERROR(E73+E75+E77+E79+E81,\"-\")","v":0}]
[null,"9.1.1.","Wartość deklarowanych w ramach Oferty wkładów od Inwestorów Prywatnych",null,"Kwota (w tys. zł)",null,null,"% Deklarowanej Kapitalizacji"]
[null,null,null,null,null,null,null,{"$f":"IFERROR(E73/E71,\"-\")","v":"-"}]
[null,"9.1.2.","Wartość deklarowanych wkładów prywatnych ze środków Kluczowego Personelu Oferenta",null,"Kwota (w tys. zł)",null,null,"% Deklarowanej Kapitalizacji"]
[null,null,null,null,null,null,null,{"$f":"IFERROR(E75/E71,\"-\")","v":"-"}]
[null,"9.1.3.","Wartość deklarowanych wkładów prywatnych ze środków pozostałych członków Zespołu Oferenta",null,"Kwota (w tys. zł)",null,null,"% Deklarowanej Kapitalizacji"]
[null,null,null,null,null,null,null,{"$f":"IFERROR(E77/E71,\"-\")","v":"-"}]
[null,"9.1.4.","Wartość deklarowanych w ramach Oferty wkładów pozostałych Inwestorów",null,"Kwota (w tys. zł)",null,null,"% Deklarowanej Kapitalizacji"]
[null,null,null,null,null,null,null,{"$f":"IFERROR(E79/E71,\"-\")","v":"-"}]
[null,"9.1.5.","Wartość zakładanych środków PFR KOFFI FIZ w Deklarowanej Kapitalizacji",null,"Kwota (w tys. zł)",null,null,"% Deklarowanej Kapitalizacji"]
[null,null,null,null,null,null,null,{"$f":"IFERROR(E81/E71,\"-\")","v":"-"}]
[null,"9.2.","Wartość Opłaty za zarządzanie w Okresie Inwestycyjnym",null,"Kwota (w tys. zł)",null,null,"% Deklarowanej Kapitalizacji"]
[null,null,null,null,{"$f":"SUM(Harmonogram!C39:N39)","v":0},null,null,{"$f":"IFERROR(E83/E71,\"-\")","v":"-"}]
[null,"9.3.","Wartość Opłaty za zarządzanie w całym horyzoncie inwestycyjnym",null,"Kwota (w tys. zł)",null,null,"% Deklarowanej Kapitalizacji"]
[null,null,null,null,{"$f":"SUM(Harmonogram!W39)","v":0},null,null,{"$f":"IFERROR(E85/E71,\"-\")","v":"-"}]
[null,"10.","Deklarowane wartości Carried Interest i Minimalnej Stopy Zwrotu (Hurdle Rate), zgodnie z pkt 36 i 37 Term Sheet"]
[null,"10.1.","Deklarowany poziom Carried Interest, w % "]
[null,"10.2.","Deklarowany poziom Hurdle Rate, w %"]
[null,"11.","Struktura Inwestycji"]
[null,"11.1.","Przeciętna kwota Inwestycji (w tys. zł) ogółem, w tym:"]
[null,"11.1.1.","W ramach pierwszych Inwestycji w Spółki Portfelowe"]
[null,"11.1.2.","W ramach Inwestycji Kontynuacyjnych"]
[null,"11.2.","Zakładany okres dokonywania Inwestycji przez Fundusz VC"]
[null,"11.3.","Zakładany okres wychodzenia z Inwestycji"]
[]
[]
[null,"Dane osób wchodzących w skład Podmiotu Zarządzającego"]
[]
[null,"12.","Dane osób wchodzących w skład Kluczowego Personelu, które zobowiązały się zapewnić udział w Deklarowanej Kapitalizacji Funduszu VC"]
[null,null,"Imię i nazwisko",null,"Deklarowane zaangażowanie czasowe w działalność inwestycyjną (godz./tyg.)",null,null,"Deklarowany wkład własny w ramach Deklarowanej Kapitalizacji (w tys. PLN)"]
[]
[]
[]
[]
[]
[]
[]
[]
[]
[]
[]
[]
[]
[null,null,null,null,null,null,null," "]
[null,"13.","Dane pozostałych członków Zespołu, które zobowiązały się zapewnić udział w Deklarowanej Kapitalizacji Funduszu VC"]
[null,null,"Imię i nazwisko",null,"Deklarowane zaangażowanie czasowe w działalność inwestycyjną (godz./tyg.)",null,null,"Deklarowany wkład własny w ramach Deklarowanej Kapitalizacji (w tys. PLN)"]
[]
[]
[]
[]
[]
[]
[]
[]
[]
[]
[]
[]
[]
[]
[null,"14.","Imiona i nazwiska osób wchodzących w skład Komitetu Inwestycyjnego Funduszu VC, które nie są członkami Kluczowego Personelu"]
[null,null,"Imię i nazwisko "]
[null,"15.","Dane osoby/osób upoważnionych przez Oferenta do kontaktów w ramach Naboru"]
[null,null,"Imię i nazwisko "]
[null,null,"Numer telefonu"]
[null,null,"Adres poczty elektronicznej (e-mail)"]
[]
[]
[null,"Dane Inwestorów Prywatnych"]
[]
[null,"16.","Dane Inwestora Prywatnego niebędącego osobą fizyczną"]
[null,null,"Nazwa Inwestora Prywatnego",null,"Kwota (w tys. zł)",null,null,"% Deklarowanej Kapitalizacji"]
[null,null,null,null,null,null,null,{"$f":"IFERROR(E143/$E$71,\"-\")","v":"-"}]
[null,null,null,null,null,null,null,"-"]
[null,null,null,null,null,null,null,"-"]
[null,null,null,null,null,null,null,"-"]
[null,null,null,null,null,null,null,"-"]
[null,null,null,null,null,null,null,"-"]
[null,null,null,null,null,null,null,"-"]
[null,null,null,null,null,null,null,"-"]
[null,null,null,null,null,null,null,"-"]
[null,"17.","Dane Inwestora Prywatnego będącego osobą fizyczną"]
[null,null,"Nazwa Inwestora Prywatnego",null,"Kwota (w tys. zł)",null,null,"% Deklarowanej Kapitalizacji"]
[null,null,null,null,null,null,null,{"$f":"IFERROR(E154/$E$71,\"-\")","v":"-"}]
[null,null,null,null,null,null,null,"-"]
[null,null,null,null,null,null,null,"-"]
[null,null,null,null,null,null,null,"-"]
[null,null,null,null,null,null,null,"-"]
[null,null,null,null,null,null,null,"-"]
[null,null,null,null,null,null,null,"-"]
[null,null,null,null,null,null,null,"-"]
[null,null,null,null,null,null,null,"-"]
[]
[null,"Dane pozostałych Inwestorów"]
[]
[null,"18.","Dane pozostałych Inwestorów"]
[null,null,"Nazwa Inwestora ",null,"Kwota (w tys. zł)",null,null,"% Deklarowanej Kapitalizacji"]
[null,null,null,null,null,null,null,{"$f":"IFERROR(E168/$E$71,\"-\")","v":"-"}]
[null,null,null,null,null,null,null,{"$f":"IFERROR(E169/$E$71,\"-\")","v":"-"}]
[null,null,null,null,null,null,null,"-"]
[null,null,null,null,null,null,null,"-"]
[null,null,null,null,null,null,null,"-"]
[]
[null,"Podpisy"]
[]
[null,"Informacje o przetwarzaniu danych osobowych wszystkich osób wymienionych w niniejszym Formularzu, dla potrzeby oceny Oferty, zgodnie przepisami o ochronie danych osobowych zostały zawarte w Załączniku Nr 5 Oswiadczenie_Oferenta, w Załączniku nr 6 Oswiadczenie_czlonka_Kluczowego_Personelu, w Załączniku nr 7 Oswiadczenie_czlonka_Zespolu_wnoszacego_wklad oraz w Załączniku nr 8 Oswiadczenie_Inwestora_Prywatnego."]
[]
[]
[]
[null,null,null,"                                      -------------------------------------------------------------------------------------------------------------------"]
[null,null,null,"                                       Imię i nazwisko Oferenta / imię i nazwisko osoby upoważnionej do reprezentowania Oferenta"]
[]
[]
[null,null,null,"                                      -------------------------------------------------------------------------------------------------------------------"]
[null,null,null,"                                                                 Funkcja w strukturze Oferenta osoby podpisującej Formularz"]
[]
[]
[null,null,null,"                                      -------------------------------------------------------------------------------------------------------------------"]
[null,null,null,"                                                   Podpis Oferenta / Podpis osoby upoważnionej do reprezentowania Oferenta"]
[]
[]
[null,null,null,"                                      -------------------------------------------------------------------------------------------------------------------"]
[null,null,null,"                                                                                                             Data i miejscowość"]

{"sheet":"Harmonogram","index":1,"n_rows":109,"n_cols":23,"rows_kept":109,"cut":false,"hidden":false,"merged":[[44,20,44,21],[44,2,44,3],[44,4,44,5],[44,6,44,7],[44,8,44,9],[44,10,44,11],[44,12,44,13],[44,14,44,15],[44,16,44,17],[44,18,44,19],[39,20,39,21],[39,2,39,3],[39,4,39,5],[39,6,39,7],[39,8,39,9],[39,10,39,11],[39,12,39,13],[39,14,39,15],[39,16,39,17],[39,18,39,19],[13,20,13,21],[13,10,13,11],[11,2,11,21],[13,2,13,3],[13,4,13,5],[13,6,13,7],[13,8,13,9],[13,12,13,13],[13,18,13,19],[13,14,13,15],[13,16,13,17],[12,12,12,21],[12,2,12,11]]}
[]
[null,"Harmonogram finansowy\nHarmonogram finansowy może być sporządzony zgodnie z poniższym wzorem lub w innej formie zaproponowanej przez Oferenta."]
[]
[null,null,null,null,null,null,null,null,null,null,null,{"$f":"IFERROR(IFERROR(IF(W23=1,\"PRAWDA\",\"FAŁSZ\"),\"-\"),\"-\")","v":"FAŁSZ"},"Suma tempo inwestycji = 100%"]
[null,"Deklarowana Kapitalizacja Funduszu VC, w tym:",{"$f":"IFERROR(IFERROR(SUM(C6:C10),\"-\"),\"-\")","v":0},{"$f":"IFERROR(IFERROR(IFERROR(SUM(D6:D10),\"-\"),\"-\"),\"-\")","v":0},null,"Budżet Inwestycyjny",null,null,{"$f":"IFERROR(IFERROR((C5-SUMPRODUCT(C18:L18,C22:L22))/(1+SUMPRODUCT(C19:V19,C26:V26-C27:V27)),\"-\"),\"-\")","v":0},null,null,{"$f":"IFERROR(IFERROR(IF(W24=1,\"PRAWDA\",\"FAŁSZ\"),\"-\"),\"-\")","v":"FAŁSZ"},"Suma tempo dezinwestycji = 100%"]
[null,"Środki PFR KOFFI FIZ",{"$f":"IFERROR(IFERROR(Formularz!E81,\"-\"),\"-\")","v":0},{"$f":"IFERROR(IFERROR(IFERROR(C6/$C$5,\"-\"),\"-\"),\"-\")","v":"-"},null,"Budżet Operacyjny",null,null,{"$f":"IFERROR(IFERROR(SUM(C40:V40),\"-\"),\"-\")","v":0},null,null,{"$f":"IFERROR(IFERROR(IF(W29+W39-C5<0.001,\"PRAWDA\",\"FAŁSZ\"),\"-\"),\"-\")","v":"PRAWDA"},"Suma Inwestycje + OZ = Deklarowana Kapitalizacja"]
[null,"Środki Inwestorów Prywatnych",{"$f":"IFERROR(IFERROR(Formularz!E73,\"-\"),\"-\")","v":0},{"$f":"IFERROR(IFERROR(IFERROR(C7/$C$5,\"-\"),\"-\"),\"-\")","v":"-"},null,"% OZ na koniec Okresu Inwestycyjnego",null,null,{"$f":"IFERROR(IFERROR(IFERROR(L46,\"-\"),\"-\"),\"-\")","v":"-"},null,null,{"$f":"IFERROR(IFERROR(IF(W33=0,\"PRAWDA\",\"FAŁSZ\"),\"-\"),\"-\")","v":"PRAWDA"},"Wartość wydatków inwestycyjnych netto na koniec = 0"]
[null,"Środki Kluczowego Personelu",{"$f":"IFERROR(IFERROR(Formularz!E75,\"-\"),\"-\")","v":0},{"$f":"IFERROR(IFERROR(IFERROR(C8/$C$5,\"-\"),\"-\"),\"-\")","v":"-"},null,"% OZ na koniec Okresu Kwalifikowalności",null,null,{"$f":"IFERROR(IFERROR(IFERROR(N46,\"-\"),\"-\"),\"-\")","v":"-"},null,null,{"$f":"IFERROR(IFERROR(IF(W37+W38=W39,\"PRAWDA\",\"FAŁSZ\"),\"-\"),\"-\")","v":"PRAWDA"},"Suma wynagrodzenie zmienne + wynagrodzenie stałe = łączenie wynagrodzenie"]
[null,"Środki pozostałych członków Zespołu",{"$f":"IFERROR(IFERROR(Formularz!E77,\"-\"),\"-\")","v":0},{"$f":"IFERROR(IFERROR(IFERROR(C9/$C$5,\"-\"),\"-\"),\"-\")","v":"-"},null,"% OZ na koniec Horyzontu Inwestycyjnego",null,null,{"$f":"IFERROR(IFERROR(IFERROR(V46,\"-\"),\"-\"),\"-\")","v":"-"},null,null,{"$f":"IFERROR(IFERROR(IF(COUNTIF(M19:V19,\">0,015\")>0,\"FAŁSZ\",\"PRAWDA\"),\"-\"),\"-\")","v":"PRAWDA"},"Opłata za Zarządzanie w Okresie wychodzenia z Inwestycji nie przekracza 1,5%"]
[null,"Środki pozostałych Inwestorów",{"$f":"IFERROR(IFERROR(Formularz!E79,\"-\"),\"-\")","v":0},{"$f":"IFERROR(IFERROR(IFERROR(C10/$C$5,\"-\"),\"-\"),\"-\")","v":"-"}]
[]
[null,null,"Horyzont inwestycyjny"]
[null,null,"Okres inwestycyjny",null,null,null,null,null,null,null,null,null,"Okres wychodzenia z Inwestycji"]
[null,"[w tys. zł]",1,null,{"$f":"IFERROR(IFERROR(C14+1,\"-\"),\"-\")","v":2},null,{"$f":"E14+1","v":3},null,{"$f":"G14+1","v":4},null,{"$f":"I14+1","v":5},null,{"$f":"K14+1","v":6},null,{"$f":"M14+1","v":7},null,{"$f":"O14+1","v":8},null,{"$f":"Q14+1","v":9},null,{"$f":"S14+1","v":10},null,"Razem"]
[null,null,"1 półrocze","2 półrocze","1 półrocze","2 półrocze","1 półrocze","2 półrocze","1 półrocze","2 półrocze","1 półrocze","2 półrocze","1 półrocze","2 półrocze","1 półrocze","2 półrocze","1 półrocze","2 półrocze","1 półrocze","2 półrocze","1 półrocze","2 półrocze"]
[]
[null,"Opłata za Zarządzanie"," "]
[null,"Opłata stała (% półrocznie)"]
[null,"Opłata zmienna (%/półrocznie)* - proszę wpisywać wartości pojedynczo do każdej komórki"]
[null,"*Podświetlenie oznacza, że nie są spełnione wymagania co do realizacji Opłaty za Zarządzanie (Term Sheet pkt. 34. 2) )\n"]
[]
[null,"Inwestycje i dezinwestycje",{"$f":"$C$5","v":0},{"$f":"$C$5","v":0},0,0,0,0,0,0,0,0,0,0,0,0,0,0,0,0,0,0]
[null,"Tempo Inwestycji",null,null,null,null,null,null,null,null,null,null,null,null,null,null,null,null,null,null,null,null,{"$f":"SUM($C23:T23)","v":0}]
[null,"Tempo dezinwestycji",null,null,null,null,null,null,null,null,null,null,null,null,null,null,null,null,null,null,null,null,{"$f":"SUM($D24:V24)","v":0}]
[]
[null,"Tempo inwestycji narastająco",{"$f":"SUM($C23:C23)","v":0},{"$f":"SUM($C23:D23)","v":0},{"$f":"SUM($C23:E23)","v":0},{"$f":"SUM($C23:F23)","v":0},{"$f":"SUM($C23:G23)","v":0},{"$f":"SUM($C23:H23)","v":0},{"$f":"SUM($C23:I23)","v":0},{"$f":"SUM($C23:J23)","v":0},{"$f":"SUM($C23:K23)","v":0},{"$f":"SUM($C23:L23)","v":0},{"$f":"SUM($C23:M23)","v":0},{"$f":"SUM($C23:N23)","v":0},{"$f":"SUM($C23:O23)","v":0},{"$f":"SUM($C23:P23)","v":0},{"$f":"SUM($C23:Q23)","v":0},{"$f":"SUM($C23:R23)","v":0},{"$f":"SUM($C23:S23)","v":0},{"$f":"SUM($C23:T23)","v":0},{"$f":"SUM($C23:U23)","v":0},{"$f":"SUM($C23:V23)","v":0},{"$f":"V26","v":0}]
[null,"Tempo dezinwestycji narastająco",{"$f":"SUM($C24:C24)","v":0},{"$f":"SUM($C24:D24)","v":0},{"$f":"SUM($C24:E24)","v":0},{"$f":"SUM($C24:F24)","v":0},{"$f":"SUM($C24:G24)","v":0},{"$f":"SUM($C24:H24)","v":0},{"$f":"SUM($C24:I24)","v":0},{"$f":"SUM($C24:J24)","v":0},{"$f":"SUM($C24:K24)","v":0},{"$f":"SUM($C24:L24)","v":0},{"$f":"SUM($C24:M24)","v":0},{"$f":"SUM($C24:N24)","v":0},{"$f":"SUM($C24:O24)","v":0},{"$f":"SUM($C24:P24)","v":0},{"$f":"SUM($C24:Q24)","v":0},{"$f":"SUM($C24:R24)","v":0},{"$f":"SUM($C24:S24)","v":0},{"$f":"SUM($C24:T24)","v":0},{"$f":"SUM($C24:U24)","v":0},{"$f":"SUM($C24:V24)","v":0},{"$f":"V27","v":0}]
[]
[null,"Inwestycje półrocznie",{"$f":"C23*$I$5","v":0},{"$f":"D23*$I$5","v":0},0,0,0,0,0,0,0,0,0,0,0,0,0,0,0,0,0,0,{"$f":"SUM(C29:V29)","v":0}]
[null,"Dezinwestycje półrocznie",{"$f":"C24*$I$5","v":0},0,0,0,0,0,0,0,0,0,0,0,0,0,0,0,0,0,0,0,{"$f":"SUM(C30:V30)","v":0}]
[null,"Inwestycje narastająco",{"$f":"SUM($C29:C29)","v":0},{"$f":"SUM($C29:D29)","v":0},{"$f":"SUM($C29:E29)","v":0},{"$f":"SUM($C29:F29)","v":0},{"$f":"SUM($C29:G29)","v":0},{"$f":"SUM($C29:H29)","v":0},{"$f":"SUM($C29:I29)","v":0},{"$f":"SUM($C29:J29)","v":0},{"$f":"SUM($C29:K29)","v":0},{"$f":"SUM($C29:L29)","v":0},{"$f":"SUM($C29:M29)","v":0},{"$f":"SUM($C29:N29)","v":0},{"$f":"SUM($C29:O29)","v":0},{"$f":"SUM($C29:P29)","v":0},{"$f":"SUM($C29:Q29)","v":0},{"$f":"SUM($C29:R29)","v":0},{"$f":"SUM($C29:S29)","v":0},{"$f":"SUM($C29:T29)","v":0},{"$f":"SUM($C29:U29)","v":0},{"$f":"SUM($C29:V29)","v":0},{"$f":"V31","v":0}]
[null,"Dezinwestycje narastająco",{"$f":"SUM($C30:C30)","v":0},{"$f":"SUM($C30:D30)","v":0},{"$f":"SUM($C30:E30)","v":0},{"$f":"SUM($C30:F30)","v":0},{"$f":"SUM($C30:G30)","v":0},{"$f":"SUM($C30:H30)","v":0},{"$f":"SUM($C30:I30)","v":0},{"$f":"SUM($C30:J30)","v":0},{"$f":"SUM($C30:K30)","v":0},{"$f":"SUM($C30:L30)","v":0},{"$f":"SUM($C30:M30)","v":0},{"$f":"SUM($C30:N30)","v":0},{"$f":"SUM($C30:O30)","v":0},{"$f":"SUM($C30:P30)","v":0},{"$f":"SUM($C30:Q30)","v":0},{"$f":"SUM($C30:R30)","v":0},{"$f":"SUM($C30:S30)","v":0},{"$f":"SUM($C30:T30)","v":0},{"$f":"SUM($C30:U30)","v":0},{"$f":"SUM($C30:V30)","v":0},{"$f":"V32","v":0}]
[null,"Wartość wydatków inwestycyjnych netto narastająco",{"$f":"C31-C32","v":0},{"$f":"D31-D32","v":0},0,0,0,0,0,0,0,0,0,0,0,0,0,0,0,0,0,0,{"$f":"V33","v":0}]
[]
[]
[null,"Wpływy z tytułu opłaty za zarządzanie"]
[null,"Opłata stała ",{"$f":"$C$5*C18","v":0},0,0,0,0,0,0,0,0,0,null,null,null,null,null,null,null,null,null,null,{"$f":"SUM(C37:V37)","v":0}]
[null,"Opłata zmienna ",null,{"$f":"C33*C19","v":0},0,0,0,0,0,0,0,0,0,0,0,0,0,0,0,0,0,0,{"$f":"SUM(C38:V38)","v":0}]
[null,"Łączne wynagrodzenie półrocznie",{"$f":"SUM(C37:C38)","v":0},{"$f":"SUM(D37:D38)","v":0},0,0,0,0,0,0,0,0,0,0,0,0,0,0,0,0,0,0,{"$f":"SUM(C39:V39)","v":0}]
[null,"Łączne wynagrodzenie rocznie",{"$f":"SUM(C39:D39)","v":0},null,{"$f":"SUM(E39:F39)","v":0},null,{"$f":"SUM(G39:H39)","v":0},null,{"$f":"SUM(I39:J39)","v":0},null,{"$f":"SUM(K39:L39)","v":0},null,{"$f":"SUM(M39:N39)","v":0},null,{"$f":"SUM(O39:P39)","v":0},null,{"$f":"SUM(Q39:R39)","v":0},null,{"$f":"SUM(S39:T39)","v":0},null,{"$f":"SUM(U39:V39)","v":0},null,{"$f":"SUM(C40:V40)","v":0}]
[]
[null,"Skumulowana wartość wynagrodzenia",{"$f":"C39","v":0},{"$f":"C$42+D39","v":0},{"$f":"D$42+E39","v":0},0,0,0,0,0,0,0,0,0,0,0,0,0,0,0,0,0]
[null,"Deklarowana kapitalizacja",{"$f":"$C$5","v":0},{"$f":"$C$5","v":0},{"$f":"$C$5","v":0},0,0,0,0,0,0,0,0,0,0,0,0,0,0,0,0,0]
[]
[null,"Łączne wynagrodzenie (% Deklarowanej Kapitalizacji) ",{"$f":"IFERROR(C40/$C$5,\"-\")","v":"-"},null,{"$f":"IFERROR(E40/$C$5,\"-\")","v":"-"},null,{"$f":"IFERROR(G40/$C$5,\"-\")","v":"-"},null,{"$f":"IFERROR(I40/$C$5,\"-\")","v":"-"},null,{"$f":"IFERROR(K40/$C$5,\"-\")","v":"-"},null,{"$f":"IFERROR(M40/$C$5,\"-\")","v":"-"},null,{"$f":"IFERROR(O40/$C$5,\"-\")","v":"-"},null,{"$f":"IFERROR(Q40/$C$5,\"-\")","v":"-"},null,{"$f":"IFERROR(S40/$C$5,\"-\")","v":"-"},null,{"$f":"IFERROR(U40/$C$5,\"-\")","v":"-"},null,{"$f":"IFERROR(SUM($C45:V45),\"-\")","v":0}]
[null,"Łączne Wynagrodzenie Funduszu VC/(Łączne Wynagrodzenie Funduszu VC+Inwestycje)",{"$f":"IFERROR(C42/(C42+C31),\"-\")","v":"-"},"-","-","-","-","-","-","-","-","-","-","-","-","-","-","-","-","-","-","-",{"$f":"IFERROR(IFERROR(V46,\"0\"),\"-\")","v":"-"}]
[]
[null,"Koszty Operacyjne, w tym:",{"$f":"SUM(C49,C54:C58,C61:C63)","v":0},{"$f":"SUM(D49,D54:D58,D61:D63)","v":0},0,0,0,0,0,0,0,0,0,0,0,0,0,0,0,0,0,0,{"$f":"SUM(C48:V48)","v":0}]
[null,"Koszty administracyjne, w tym:",{"$f":"SUM(C50:C53)","v":0},{"$f":"SUM(D50:D53)","v":0},0,0,0,0,0,0,0,0,0,0,0,0,0,0,0,0,0,0,{"$f":"SUM(C49:V49)","v":0}]
[null,"czynsz, eksploatacja biura",null,null,null,null,null,null,null,null,null,null,null,null,null,null,null,null,null,null,null,null,{"$f":"SUM(C50:V50)","v":0}]
[null,"księgowość",null,null,null,null,null,null,null,null,null,null,null,null,null,null,null,null,null,null,null,null,0]
[null,"delegacje/telekomunikacja",null,null,null,null,null,null,null,null,null,null,null,null,null,null,null,null,null,null,null,null,0]
[null,"inne",null,null,null,null,null,null,null,null,null,null,null,null,null,null,null,null,null,null,null,null,0]
[null,"Koszty przygotowania i realizacji Inwestycji (np. due diligence, koszty transakcyjne)",null,null,null,null,null,null,null,null,null,null,null,null,null,null,null,null,null,null,null,null,0]
[null,"Koszty monitorowania i nadzoru Inwestycji (np. delegacje)",null,null,null,null,null,null,null,null,null,null,null,null,null,null,null,null,null,null,null,null,0]
[null,"Koszty wyjść z Inwestycji",null,null,null,null,null,null,null,null,null,null,null,null,null,null,null,null,null,null,null,null,0]
[null,"Koszty likwidacji funduszu",null,null,null,null,null,null,null,null,null,null,null,null,null,null,null,null,null,null,null,null,0]
[null,"Wynagrodzenia (w tym ubezpieczenia społeczne i inne świadczenia), w tym:",{"$f":"SUM(C59:C60)","v":0},{"$f":"SUM(D59:D60)","v":0},0,0,0,0,0,0,0,0,0,0,0,0,0,0,0,0,0,0,0]
[null,"Kluczowy Personel",null,null,null,null,null,null,null,null,null,null,null,null,null,null,null,null,null,null,null,null,0]
[null,"pozostali członkowie Zespołu",null,null,null,null,null,null,null,null,null,null,null,null,null,null,null,null,null,null,null,null,0]
[null,"Koszty marketingu",null,null,null,null,null,null,null,null,null,null,null,null,null,null,null,null,null,null,null,null,0]
[null,"Podatki i inne opłaty (np. PCC, opłaty notarialne/skarbowe)",null,null,null,null,null,null,null,null,null,null,null,null,null,null,null,null,null,null,null,null,0]
[null,"Pozostałe koszty",null,null,null,null,null,null,null,null,null,null,null,null,null,null,null,null,null,null,null,null,0]
[]
[null,"% Kosztów operacyjnych",{"$f":"IFERROR(C48/C$48,\"-\")","v":"-"},"-","-","-","-","-","-","-","-","-","-","-","-","-","-","-","-","-","-","-","-"]
[null,"Koszty administracyjne, w tym:",{"$f":"IFERROR(C49/C$48,\"-\")","v":"-"},"-","-","-","-","-","-","-","-","-","-","-","-","-","-","-","-","-","-","-","-"]
[null,"czynsz, eksploatacja biura",{"$f":"IFERROR(C50/C$48,\"-\")","v":"-"},"-","-","-","-","-","-","-","-","-","-","-","-","-","-","-","-","-","-","-","-"]
[null,"księgowość",{"$f":"IFERROR(C51/C$48,\"-\")","v":"-"},"-","-","-","-","-","-","-","-","-","-","-","-","-","-","-","-","-","-","-","-"]
[null,"delegacje/telekomunikacja",{"$f":"IFERROR(C52/C$48,\"-\")","v":"-"},"-","-","-","-","-","-","-","-","-","-","-","-","-","-","-","-","-","-","-","-"]
[null,"inne",{"$f":"IFERROR(C53/C$48,\"-\")","v":"-"},"-","-","-","-","-","-","-","-","-","-","-","-","-","-","-","-","-","-","-","-"]
[null,"Koszty przygotowania i realizacji Inwestycji (np. due diligence, koszty transakcyjne)",{"$f":"IFERROR(C54/C$48,\"-\")","v":"-"},"-","-","-","-","-","-","-","-","-","-","-","-","-","-","-","-","-","-","-","-"]
[null,"Koszty monitorowania i nadzoru Inwestycji (np. delegacje)",{"$f":"IFERROR(C55/C$48,\"-\")","v":"-"},"-","-","-","-","-","-","-","-","-","-","-","-","-","-","-","-","-","-","-","-"]
[null,"Koszty wyjść z Inwestycji",{"$f":"IFERROR(C56/C$48,\"-\")","v":"-"},"-","-","-","-","-","-","-","-","-","-","-","-","-","-","-","-","-","-","-","-"]
[null,"Koszty likwidacji funduszu",{"$f":"IFERROR(C57/C$48,\"-\")","v":"-"},"-","-","-","-","-","-","-","-","-","-","-","-","-","-","-","-","-","-","-","-"]
[null,"Wynagrodzenia (w tym ubezpieczenia społeczne i inne świadczenia), w tym:",{"$f":"IFERROR(C58/C$48,\"-\")","v":"-"},"-","-","-","-","-","-","-","-","-","-","-","-","-","-","-","-","-","-","-","-"]
[null,"Kluczowy Personel",{"$f":"IFERROR(C59/C$48,\"-\")","v":"-"},"-","-","-","-","-","-","-","-","-","-","-","-","-","-","-","-","-","-","-","-"]
[null,"pozostali członkowie Zespołu",{"$f":"IFERROR(C60/C$48,\"-\")","v":"-"},"-","-","-","-","-","-","-","-","-","-","-","-","-","-","-","-","-","-","-","-"]
[null,"Koszty marketingu",{"$f":"IFERROR(C61/C$48,\"-\")","v":"-"},"-","-","-","-","-","-","-","-","-","-","-","-","-","-","-","-","-","-","-","-"]
[null,"Podatki i inne opłaty (np. PCC, opłaty notarialne/skarbowe)",{"$f":"IFERROR(C62/C$48,\"-\")","v":"-"},"-","-","-","-","-","-","-","-","-","-","-","-","-","-","-","-","-","-","-","-"]
[null,"Pozostałe koszty",{"$f":"IFERROR(C63/C$48,\"-\")","v":"-"},"-","-","-","-","-","-","-","-","-","-","-","-","-","-","-","-","-","-","-","-"]
[]
[null,"Łączny udział kosztów operacyjnych w Deklarowanej Kapitalizacji Funduszu VC",{"$f":"IFERROR(C48/$C$5,\"-\")","v":"-"},"-","-","-","-","-","-","-","-","-","-","-","-","-","-","-","-","-","-","-"]
[]
[null,"Pokrycie kosztów operacyjnych z opłaty za zarządzanie**",{"$f":"IFERROR(C48/C39,\"-\")","v":"-"},"-","-","-","-","-","-","-","-","-","-","-","-","-","-","-","-","-","-","-","-"]
[null,"Pokrycie kosztów operacyjnych z opłaty za zarządzanie - narastająco***",{"$f":"IFERROR(SUM($C48:C48)/SUM($C39:C39),\"-\")","v":"-"},{"$f":"IFERROR(SUM($C48:D48)/SUM($C39:D39),\"-\")","v":"-"},{"$f":"IFERROR(SUM($C48:E48)/SUM($C39:E39),\"-\")","v":"-"},{"$f":"IFERROR(SUM($C48:F48)/SUM($C39:F39),\"-\")","v":"-"},{"$f":"IFERROR(SUM($C48:G48)/SUM($C39:G39),\"-\")","v":"-"},{"$f":"IFERROR(SUM($C48:H48)/SUM($C39:H39),\"-\")","v":"-"},{"$f":"IFERROR(SUM($C48:I48)/SUM($C39:I39),\"-\")","v":"-"},{"$f":"IFERROR(SUM($C48:J48)/SUM($C39:J39),\"-\")","v":"-"},{"$f":"IFERROR(SUM($C48:K48)/SUM($C39:K39),\"-\")","v":"-"},{"$f":"IFERROR(SUM($C48:L48)/SUM($C39:L39),\"-\")","v":"-"},{"$f":"IFERROR(SUM($C48:M48)/SUM($C39:M39),\"-\")","v":"-"},{"$f":"IFERROR(SUM($C48:N48)/SUM($C39:N39),\"-\")","v":"-"},{"$f":"IFERROR(SUM($C48:O48)/SUM($C39:O39),\"-\")","v":"-"},{"$f":"IFERROR(SUM($C48:P48)/SUM($C39:P39),\"-\")","v":"-"},{"$f":"IFERROR(SUM($C48:Q48)/SUM($C39:Q39),\"-\")","v":"-"},{"$f":"IFERROR(SUM($C48:R48)/SUM($C39:R39),\"-\")","v":"-"},{"$f":"IFERROR(SUM($C48:S48)/SUM($C39:S39),\"-\")","v":"-"},{"$f":"IFERROR(SUM($C48:T48)/SUM($C39:T39),\"-\")","v":"-"},{"$f":"IFERROR(SUM($C48:U48)/SUM($C39:U39),\"-\")","v":"-"},{"$f":"IFERROR(SUM($C48:V48)/SUM($C39:V39),\"-\")","v":"-"}]
[null,"**Podświetlenie oznacza większe koszty niż wpływ z tytułu OZ w danym okresie"]
[null,"***Podświetlenie oznacza większe łączne koszty niż łączne wpływy z tytułu OZ (w takiej sytuacji koszty będą ponoszone ze środków własnych Oferenta)"]
[]
[null,"Zatrudnienie (według stanowisk i roli, w tym ze wskazaniem członków Kluczowego Personelu i Zespołu Zarządzającego)"]
[null,"Stanowisko 1"]
[null,"Liczba osób na stanowisku"]
[null,"Stanowisko 2"]
[null,"Liczba osób na stanowisku"]
[null,"Stanowisko 3"]
[null,"Liczba osób na stanowisku"]
[null,"Stanowisko 4"]
[null,"Liczba osób na stanowisku"]
[null,"Stanowisko 5"]
[null,"Liczba osób na stanowisku"]
[null,"Stanowisko 6"]
[null,"Liczba osób na stanowisku"]
[null,"Stanowisko 7"]
[null,"Liczba osób na stanowisku"]
[null,"Stanowisko 8"]
[null,"Liczba osób na stanowisku"]
[null,"Stanowisko 9"]
[null,"Liczba osób na stanowisku"]
[null,"Stanowisko 10"]
[null,"Liczba osób na stanowisku"]